Cogmind - Beta 13 @@@ ROGUE MODE // 2024.04.06 @ 00:34:19 Player: Zaz Result: Escaped! Performance ------------- Evolutions (9) 4500 Regions Visited (14) 2800 Robots Destroyed (101) 505 Value Destroyed (3033) 3033 Prototype IDs (42) 840 Alien Tech Used (0) 0 Bonus (3031) 3031 TOTAL SCORE: 14709 Bonus ------- High Alert Combat Kills 22 Follower Combat Kills 28 Aligned with FarCom 300 Win 3000 Friendly Fire -319 Cogmind --------- Core Integrity 1557/1600 Matter 105/300 Energy 96/100 System Corruption 1% Temperature Cool (8) Movement Flying (28) Location To Epsilon Eridani Parts ------- > --- POWER (3) -------- Backup Power VII Backup Power VII Backup Power VII > --- PROPULSION (6) --- Improved VTOL Module Cooled VTOL Module Nuclear Pulse Array Field Propulsion Array > --- UTILITY (14) ----- Small Storage Unit Long-range Terrain Scanner Advanced Terrain Scan Processor Improved Cloaking Device Experimental Utility Shielding Advanced Thermal Shield Improved Hacking Suite Improved Hacking Suite Improved Hacking Suite Improved Hacking Suite Experimental Hacking Suite Experimental Hacking Suite Improved System Shield Experimental System Shield > --- WEAPON (2) ------- Ionic Axe > --- INVENTORY (8) ---- Backup Power VII Xenon Bombardment Thruster Xenon Bombardment Thruster Biomechanical Wings System Restoration Module Improved Recalibrator Peak State ------------ > --- POWER ------------ Backup Power VII Backup Power VII Backup Power VII > --- PROPULSION ------- Improved VTOL Module Cooled VTOL Module Nuclear Pulse Array Field Propulsion Array > --- UTILITY ---------- Small Storage Unit Long-range Terrain Scanner Advanced Terrain Scan Processor Improved Cloaking Device Experimental Utility Shielding Advanced Thermal Shield Improved Hacking Suite Improved Hacking Suite Improved Hacking Suite Improved Hacking Suite Experimental Hacking Suite Experimental Hacking Suite Improved System Shield Experimental System Shield > --- WEAPON ----------- Ionic Axe > --- INVENTORY -------- Backup Power VII Xenon Bombardment Thruster Xenon Bombardment Thruster Biomechanical Wings System Restoration Module Improved Recalibrator [Rating: 147] Favorites ----------- Power Micro Fission Core Engine Improved Ion Engine Power Core Micro Fission Core Reactor Micro Antimatter Reactor Propulsion Cooled VTOL Module Treads Light Treads Wheel Compact Wheel Flight Unit Cooled VTOL Module Utility Improved Hacking Suite Device Advanced Terrain Scanner Storage Small Storage Unit Processor Advanced Targeting Computer Hackware Improved Hacking Suite Protection Heavy Armor Plating Weapon Scythe Energy Gun Medium Laser Ballistic Gun Heavy Assault Rifle Launcher Missile Launcher Impact Weapon Power Maul Slashing Weapon Scythe Build | -11 -10 -10 -10 -9 -8 -7 -7 -7 -6 -5 -4 -3 -2 -1 ------- Run | Yrd Mat Min Exi Min Mat Fac Was Fac Fac Fac Fac Res Res Acc Slots Evolved 18 | . . . . . 4 2 . . 2 2 2 2 2 2 Power 2 | . . . . . . . . . . 1 . . . 1 Propulsion 4 | . . . . . 1 . . . 1 1 . . 1 . Utility 12 | . . . . . 3 2 . . 1 . 2 2 1 1 Weapon . | . . . . . . . . . . . . . . . Parts Attached 230 | 6 23 1 2 2 71 22 2 13 36 11 26 8 5 2 Power 23 | 1 3 . . . 3 4 . 4 2 2 3 . . 1 Engine 6 | 1 3 . . . 1 . . 1 . . . . . . Core 15 | . . . . . 2 4 . 3 2 2 1 . . 1 Reactor 2 | . . . . . . . . . . . 2 . . . Propulsion 96 | 2 12 . 1 . 49 8 1 3 12 3 2 2 1 . Treads 34 | 1 6 . . . 27 . . . . . . . . . Leg . | . . . . . . . . . . . . . . . Wheel 29 | 1 6 . 1 . 21 . . . . . . . . . Hover . | . . . . . . . . . . . . . . . Flight 33 | . . . . . 1 8 1 3 12 3 2 2 1 . Utility 81 | 1 4 . 1 . 7 8 1 6 18 5 20 6 3 1 Device 38 | . . . . . . . 1 1 13 4 15 1 2 1 Storage 8 | 1 2 . 1 . . 2 . . . . 1 1 . . Processor 7 | . 2 . . . 4 . . . 1 . . . . . Hackware 18 | . . . . . 1 6 . 3 2 1 2 2 1 . Protection 10 | . . . . . 2 . . 2 2 . 2 2 . . Artifact . | . . . . . . . . . . . . . . . Weapon 30 | 2 4 1 . 2 12 2 . . 4 1 1 . 1 . Energy Gun 3 | 1 . . . . 2 . . . . . . . . . Energy Cannon . | . . . . . . . . . . . . . . . Ballistic Gun 12 | 1 3 . . 1 7 . . . . . . . . . Ballistic Cannon . | . . . . . . . . . . . . . . . Launcher 9 | . 1 1 . 1 1 1 . . 2 1 1 . . . Special Weapon . | . . . . . . . . . . . . . . . Impact Weapon 2 | . . . . . . . . . 2 . . . . . Slashing Weapon 4 | . . . . . 2 1 . . . . . . 1 . Piercing Weapon . | . . . . . . . . . . . . . . . Special Melee Weapon . | . . . . . . . . . . . . . . . Unidentified Prototypes 8 | . . . . . . 2 . 1 2 . . 1 2 . Parts Lost 23 | . 1 . . . 2 4 . 1 8 1 4 2 . . Power 2 | . . . . . . 1 . . 1 . . . . . Propulsion 7 | . 1 . . . . 1 . 1 4 . . . . . Utility 10 | . . . . . 1 2 . . 3 1 3 . . . Weapon 4 | . . . . . 1 . . . . . 1 2 . . Highest Loss Streak 3 | . 1 . . . 1 2 . 1 3 1 3 2 . . To Critical Strikes . | . . . . . . . . . . . . . . . Average Slot Usage (%) 91 | . 99 100 100 100 92 89 90 91 81 97 94 94 82 87 Engine 2 | . 14 14 14 14 3 . . . . . . . . . Core 6 | . . . . . 5 6 7 6 6 10 8 4 8 11 Treads 4 | . 17 14 13 . 12 . . . . . . . . . Wheel 4 | . 10 14 14 28 14 . . . . . . . . . Flight 15 | . . . . . . 22 23 23 22 28 23 19 17 16 Device 3 | . . . . . . . 5 4 4 6 6 11 8 12 Storage 7 | . 14 14 14 14 9 6 7 7 6 5 4 4 4 4 Processor 7 | . 13 14 14 14 21 1 . . 6 5 5 4 4 4 Hackware 23 | . . . . . 1 42 38 38 28 26 32 32 30 32 Protection 1 | . . . . . 7 . . 2 . . . 1 4 4 Ballistic Gun 4 | . 20 14 14 18 14 . . . . . . . . . Launcher 1 | . . 14 14 9 . . . . . 3 4 3 . . Impact Weapon 1 | . . . . . . . . . . 5 5 4 . . Slashing Weapon 3 | . . . . . 2 6 7 7 4 . . . 4 4 Naked Turns . | . . . . . . . . . . . . . . . Heaviest Build 68 | 11 31 32 52 52 68 67 13 15 18 27 34 31 22 28 Greatest Support 60 | 10 40 10 20 20 60 18 16 16 24 28 33 31 38 38 Greatest Overweight (x) 22 | 1 3 3 5 2 22 4 . . 1 . 1 . . . Average Overweight (x) . | . 1 3 3 2 1 . . . . . . . . . Largest Inventory Capacity 20 | 8 15 15 20 20 20 20 8 8 8 8 8 8 8 8 Average Capacity 11 | 6 13 15 15 20 20 8 8 8 8 8 7 8 8 8 Most Carried 20 | 6 15 15 15 16 20 20 8 8 8 8 8 8 8 8 Average Carried 10 | 3 11 15 15 15 19 7 8 7 6 7 7 7 7 6 Final Capacity 20 | 8 15 15 20 20 20 8 8 8 8 8 8 8 8 8 Final Carried 20 | 6 15 15 15 16 20 8 8 8 8 8 8 7 8 6 Class Distribution -------------------- 19% | Hacker-Sprinter 18% | Wizard-Scout 16% | Mutant 14% | Wizard-Sprinter 13% | Scavenger-Mutant 11% | Wizard-Ninja Dominant Class ---------------- Mutant | -10/Materials Mutant | -10/Mines Mutant | -10/Exiles Mutant | -9/Mines Scavenger-Mutant | -8/Materials Wizard-Sprinter | -7/Factory Hacker-Sprinter | -7/Waste Hacker-Sprinter | -7/Factory Wizard-Scout | -6/Factory Wizard-Scout | -5/Factory Wizard-Scout | -4/Factory Wizard-Ninja | -3/Research Wizard-Ninja | -2/Research Wizard-Ninja | -1/Access Resources | -11 -10 -10 -10 -9 -8 -7 -7 -7 -6 -5 -4 -3 -2 -1 ----------- Run | Yrd Mat Min Exi Min Mat Fac Was Fac Fac Fac Fac Res Res Acc Matter Collected 3672 | 192 517 33 . 64 1342 217 . 323 416 165 213 190 . . Remotely . | . . . . . . . . . . . . . . . Salvage Created 3490 | . 737 5 . 63 1798 257 . 50 191 150 28 211 . . Parts 204 | . 49 1 . 12 99 14 . 3 16 6 . 4 . . Haulers Intercepted 4 | . 2 . . . 2 . . . . . . . . . Recyclers Shooed 4 | . 1 . . . 3 . . . . . . . . . Parts Field Recycled . | . . . . . . . . . . . . . . . Retrieved Matter . | . . . . . . . . . . . . . . . Parts Self-Destructed . | . . . . . . . . . . . . . . . Prevented . | . . . . . . . . . . . . . . . Kills | -11 -10 -10 -10 -9 -8 -7 -7 -7 -6 -5 -4 -3 -2 -1 ------- Run | Yrd Mat Min Exi Min Mat Fac Was Fac Fac Fac Fac Res Res Acc Combat Hostiles Destroyed 69 | . 15 2 . 4 29 6 . 1 5 7 . . . . Melee 5 | . . . . . . . . 1 4 . . . . . Guns 38 | . 13 . . . 25 . . . . . . . . . AOE 26 | . 2 2 . 4 4 6 . . 1 7 . . . . Classes Destroyed 13 | . 8 . . . 2 1 . . 1 1 . . . . Worker 2 | . 1 . . 1 . . . . . . . . . . Builder 3 | . 1 . . . 1 1 . . . . . . . . Hauler 4 | . 2 . . . 2 . . . . . . . . . Recycler 8 | . 1 . . . 5 1 . . . . . 1 . . Mechanic 1 | . 1 . . . . . . . . . . . . . Operator 8 | . 2 . . . 3 2 . . . 1 . . . . Watcher 5 | . . . . . 1 . . . 1 . 1 2 . . Swarmer 19 | . 3 2 . 4 4 . . . . 6 . . . . Cutter 3 | . . . . . . . . . 3 . . . . . Grunt 35 | . 12 . . 1 17 5 . . . . . . . . Sentry 8 | . . . . . 8 . . . . . . . . . Hunter 1 | . . . . . . . . . . 1 . . . . Programmer 4 | . . . . . . 1 . 1 2 . . . . . Best Kill Streak 7 | . 4 2 . 3 6 7 . 1 3 4 1 2 . . Combat Bots Only 6 | . 3 2 . 2 6 6 . 1 3 4 . . . . Max Kills in Single Turn 4 | . 3 2 . 3 2 2 . 1 1 4 1 1 . . Gunslinging . | . . . . . . . . . . . . . . . Exploded 4 | . 2 2 . 2 1 2 . . 1 4 . . . . Melee 1 | . . . . . . . . 1 1 . . . . . Uniques/NPCs Destroyed . | . . . . . . . . . . . . . . . Combat | -11 -10 -10 -10 -9 -8 -7 -7 -7 -6 -5 -4 -3 -2 -1 -------- Run | Yrd Mat Min Exi Min Mat Fac Was Fac Fac Fac Fac Res Res Acc Hostile Shots Fired 478 | . 70 2 . 5 140 25 1 36 89 33 66 9 2 . Missed 170 | . 12 1 . . 27 11 1 23 41 13 35 5 1 . Damage Taken 5284 | . 749 11 . 39 1774 258 . 229 724 548 733 154 22 43 Core 994 | . 97 3 . 15 108 33 . 107 300 65 199 24 . 43 Absorbed by Shields . | . . . . . . . . . . . . . . . Ignored by Resistances 103 | . . . . . 39 . . . . . 64 . . . Regen/Repaired (Parts) 458 | . 111 . . . . 98 . 16 31 83 119 . . . Core Remaining (%) 84 | 100 . . . 54 80 . . 80 64 93 82 98 100 97 Volleys Fired 210 | . 66 1 . 5 116 9 . . 3 5 4 1 . . Largest 2 | . 2 2 . 2 2 1 . . 1 1 1 1 . . Hottest 79 | . 70 50 . 50 79 36 . . 36 36 36 36 . . Shots Fired 387 | . 130 2 . 9 223 9 . . 3 5 4 2 . . Gun 351 | . 128 1 . 5 217 . . . . . . . . . Cannon . | . . . . . . . . . . . . . . . Launcher 36 | . 2 1 . 4 6 9 . . 3 5 4 2 . . Special . | . . . . . . . . . . . . . . . Kinetic 297 | . 93 1 . 5 198 . . . . . . . . . Thermal 54 | . 35 . . . 19 . . . . . . . . . Explosive 36 | . 2 1 . 4 6 9 . . 3 5 4 2 . . Electromagnetic . | . . . . . . . . . . . . . . . Robot Hit Streak 30 | . 19 1 . 2 30 8 . . 3 4 1 . . . Robot Miss Streak 3 | . 3 1 . 2 3 1 . . . 1 1 3 . . Penetration Max . | . . . . . . . . . . . . . . . Secondary Targets 1 | . . . . . 1 . . . . . . . . . Max Gunslinging Chain 1 | . . . . . 1 . . . . . . . . . Shots Hit Robots 323 | . 99 1 . 2 183 9 . 5 9 6 2 7 . . Core Hits 181 | . 39 2 . 12 85 15 . 1 7 8 6 6 . . Critical Kills . | . . . . . . . . . . . . . . . Critical Parts Destroyed . | . . . . . . . . . . . . . . . Critical Strikes 6 | . 2 . . . 2 . . 1 1 . . . . . Burn 4 | . 2 . . . 2 . . . . . . . . . Sever 2 | . . . . . . . . 1 1 . . . . . Melee Attacks 288 | . . . . . 14 57 . 55 73 27 42 14 4 2 Impact 85 | . . . . . . . . . 2 27 42 14 . . Slashing 203 | . . . . . 14 57 . 55 71 . . . 4 2 Piercing . | . . . . . . . . . . . . . . . Sneak Attacks 5 | . . . . . 1 2 . . . . . 2 . . Combat Hostiles . | . . . . . . . . . . . . . . . Follow-up Attacks . | . . . . . . . . . . . . . . . Damage Inflicted 8630 | . 1593 100 . 403 3253 1132 . 167 371 713 336 562 . . Guns 3807 | . 1148 . . 33 2626 . . . . . . . . . Cannons . | . . . . . . . . . . . . . . . Explosions 3463 | . 425 94 . 370 543 979 . . 86 583 281 102 . . Melee 1325 | . . . . . 75 153 . 167 285 130 55 460 . . Ramming 35 | . 20 6 . . 9 . . . . . . . . . Kinetic 3240 | . 809 . . 33 2398 . . . . . . . . . Thermal 943 | . 603 . . . 340 . . . . . . . . . Explosive 3087 | . 161 94 . 370 431 979 . . 86 583 281 102 . . Electromagnetic . | . . . . . . . . . . . . . . . Impact 645 | . . . . . . . . . . 130 55 460 . . Slashing 680 | . . . . . 75 153 . 167 285 . . . . . Piercing . | . . . . . . . . . . . . . . . Highest Corruption 11 | . . . . . . 1 9 11 4 . 3 3 . 1 Average Corruption 4 | . . . . . . 1 5 10 3 . 2 2 . 1 Corruption Purged 4 | . . . . . . . . . . . 1 3 . . Corruption Blocked . | . . . . . . . . . . . . . . . Effects 120 | . . . . . . 19 1 57 26 . 11 6 . . Message Errors 30 | . . . . . . 2 . 20 7 . 1 . . . Matter Fused 27 | . . . . . . 5 . 12 7 . 3 . . . Heat Flow Errors 17 | . . . . . . 4 . 8 3 . 2 . . . Energy Discharges 16 | . . . . . . 2 . 7 5 . 1 1 . . Parts Rejected 1 | . . . . . . . . 1 . . . . . . Parts Fused 1 | . . . . . . 1 . . . . . . . . Data Loss (minor) 17 | . . . . . . 3 . 7 1 . 3 3 . . Data Loss (major) 4 | . . . . . . 1 . 1 1 . 1 . . . Misfires 1 | . . . . . . . . . . . . 1 . . Alerts 5 | . . . . . . 1 1 . 2 . . 1 . . Misdirections 1 | . . . . . . . . 1 . . . . . . Overload Shots . | . . . . . . . . . . . . . . . Overflow Damage 568 | . 78 2 . 5 51 188 . 22 18 62 31 111 . . Projectiles . | . . . . . . . . . . . . . . . Explosions 356 | . 78 2 . 5 51 146 . . 18 40 . 16 . . Melee 212 | . . . . . . 42 . 22 . 22 31 95 . . Knockbacks 5 | . 1 . . . . . . . . 1 1 2 . . Impact 5 | . 1 . . . . . . . . 1 1 2 . . Kinetic . | . . . . . . . . . . . . . . . Secondary . | . . . . . . . . . . . . . . . Self-Inflicted Damage 547 | . 102 3 . . 52 38 . . 20 252 . 80 . . Shots 10 | . 2 . . . 1 1 . . 1 3 . 2 . . Rammed 4 | . 2 1 . . 1 . . . . . . . . . Targets Rammed 5 | . 3 1 . . 1 . . . . . . . . . Kicked . | . . . . . . . . . . . . . . . Crushed 1 | . 1 . . . . . . . . . . . . . Highest Temperature 288 | . 190 . . . 135 288 . 267 185 7 165 5 . . Average Temperature 68 | . 60 . . . 37 121 . 104 73 4 101 5 . . Received Heat Transfer 1516 | . 375 . . . 918 81 . 45 60 . 37 . . . Effects 1 | . . . . . . . . 1 . . . . . . Energy Bleed 1 | . . . . . . . . 1 . . . . . . Siege Activations . | . . . . . . . . . . . . . . . Robots Corrupted . | . . . . . . . . . . . . . . . Combat Hostiles . | . . . . . . . . . . . . . . . Parts Fried 12 | . . . . . . . . . . 5 3 4 . . Impact Corruptions 6 | . . . . . . . . . . 2 1 3 . . Robots Melted . | . . . . . . . . . . . . . . . Combat Hostiles . | . . . . . . . . . . . . . . . Parts Melted 3 | . 2 . . . 1 . . . . . . . . . Heat Transferred 2211 | . 1347 . . . 864 . . . . . . . . . Parts Sabotaged . | . . . . . . . . . . . . . . . Parts Stolen . | . . . . . . . . . . . . . . . Parts Stripped . | . . . . . . . . . . . . . . . Power Chain Reactions . | . . . . . . . . . . . . . . . Alert | -11 -10 -10 -10 -9 -8 -7 -7 -7 -6 -5 -4 -3 -2 -1 ------- Run | Yrd Mat Min Exi Min Mat Fac Was Fac Fac Fac Fac Res Res Acc Peak Influence 504 | . 372 173 . 250 504 229 34 325 416 280 258 104 38 18 Initial 154 | . . 93 . . 97 154 19 23 118 120 132 84 . 17 Average 121 | . 168 88 . 175 217 79 22 57 138 165 89 25 11 8 Maximum Alert Level 2 | . 1 . . 1 2 1 . 1 2 1 1 . . . Low Security (%) 75 | 100 52 100 . 67 48 84 100 94 66 69 94 100 100 100 Level 1 22 | . 47 . . 32 45 15 . 5 28 30 5 . . . Level 2 1 | . . . . . 5 . . . 4 . . . . . Level 3 . | . . . . . . . . . . . . . . . Level 4 . | . . . . . . . . . . . . . . . Level 5 . | . . . . . . . . . . . . . . . High Security . | . . . . . . . . . . . . . . . Max Security . | . . . . . . . . . . . . . . . Squads Dispatched 91 | . 5 . . . 8 20 . 15 20 7 9 3 4 . Investigation 48 | . 3 . . . 4 11 . 11 8 3 5 1 2 . Extermination 13 | . . . . . . 3 . 2 3 1 3 1 . . Reinforcement 30 | . 2 . . . 4 6 . 2 9 3 1 1 2 . Assault . | . . . . . . . . . . . . . . . Garrison . | . . . . . . . . . . . . . . . Intercept . | . . . . . . . . . . . . . . . Searches Triggered . | . . . . . . . . . . . . . . . Construction Impeded 3 | . . . . . 1 1 . . . 1 . . . . Haulers Reinforced 1 | . . . . . . . . . . . . 1 . . Active Scanning Responses . | . . . . . . . . . . . . . . . Cargo Convoy Interrupts . | . . . . . . . . . . . . . . . Stealth | -11 -10 -10 -10 -9 -8 -7 -7 -7 -6 -5 -4 -3 -2 -1 --------- Run | Yrd Mat Min Exi Min Mat Fac Was Fac Fac Fac Fac Res Res Acc Distress Signals 20 | . 3 . . . 10 1 . . . 3 2 1 . . Communications Jammed . | . . . . . . . . . . . . . . . Distress Signals . | . . . . . . . . . . . . . . . Times Spotted 281 | . 30 2 . 7 48 26 6 53 46 24 23 13 3 . Peak Tracking Total 11 | . 5 2 . 4 8 6 6 8 11 6 10 5 1 . Tactical Retreats 51 | . 1 . . . 6 6 . 11 15 4 6 1 1 . Traps | -11 -10 -10 -10 -9 -8 -7 -7 -7 -6 -5 -4 -3 -2 -1 ------- Run | Yrd Mat Min Exi Min Mat Fac Was Fac Fac Fac Fac Res Res Acc Traps Triggered 12 | . 1 . . . 1 4 . 1 1 . . 2 1 1 Indirectly . | . . . . . . . . . . . . . . . Trap Hack Attempts . | . . . . . . . . . . . . . . . Triggered . | . . . . . . . . . . . . . . . Disarmed . | . . . . . . . . . . . . . . . Reprogrammed . | . . . . . . . . . . . . . . . Reused . | . . . . . . . . . . . . . . . Traps Extracted . | . . . . . . . . . . . . . . . Installed . | . . . . . . . . . . . . . . . Triggered 1 | . . . . . . . . . . . . 1 . . Machines | -11 -10 -10 -10 -9 -8 -7 -7 -7 -6 -5 -4 -3 -2 -1 ---------- Run | Yrd Mat Min Exi Min Mat Fac Was Fac Fac Fac Fac Res Res Acc Machines Disabled 15 | . 3 . . 3 4 3 . . . 2 . . . . Max in Single Turn 3 | . 2 . . 3 2 2 . . . 2 . . . . Garrison Access 12 | . . . . . . 2 . 4 2 2 1 . 1 . Machines Repaired . | . . . . . . . . . . . . . . . Machines Dismantled . | . . . . . . . . . . . . . . . Machines Sabotaged . | . . . . . . . . . . . . . . . Overloaded Fab Kills . | . . . . . . . . . . . . . . . Hacking | -11 -10 -10 -10 -9 -8 -7 -7 -7 -6 -5 -4 -3 -2 -1 --------- Run | Yrd Mat Min Exi Min Mat Fac Was Fac Fac Fac Fac Res Res Acc Machines Accessed 143 | . 5 . 1 . 11 28 . 25 28 12 18 8 4 3 Terminals 88 | . 4 . . . 9 18 . 14 16 5 12 5 2 3 Fabricators 24 | . . . . . . 6 . 5 5 3 3 1 1 . Repair Stations 9 | . 1 . . . . 1 . 1 2 2 1 1 . . Recycling Units 1 | . . . . . . . . . 1 . . . . . Scanalyzers 7 | . . . . . 1 1 . 1 2 . 1 1 . . Garrison Access 13 | . . . . . 1 2 . 4 2 2 1 . 1 . Total Hacks 565 | . 13 . 1 . 35 141 . 98 102 44 74 26 17 14 Successful 407 | . 4 . 1 . 22 103 . 64 78 27 57 24 14 13 Failed 156 | . 9 . . . 13 37 . 34 24 17 17 1 3 1 Catastrophic 25 | . 4 . . . 4 3 . 5 5 2 2 . . . Database Lockouts 2 | . . . . . . 1 . . . . . 1 . . Manual 337 | . 9 . 1 . 24 94 . 57 57 28 30 15 13 9 Terminals 432 | . 10 . . . 25 108 . 74 78 31 59 20 13 14 Fabricators 52 | . . . . . . 15 . 12 9 6 6 2 2 . Repair Stations 27 | . 3 . . . . 6 . 3 4 5 4 2 . . Recycling Units 1 | . . . . . . . . . 1 . . . . . Scanalyzers 33 | . . . . . 9 9 . 2 7 . 4 2 . . Garrison Access 19 | . . . . . 1 3 . 7 3 2 1 . 2 . Terminal Hacks 223 | . 1 . 1 . 9 57 . 35 42 11 37 13 8 9 Record 29 | . . . . . . 3 . 9 7 2 5 3 . . Part Schematic 17 | . . . . . 2 4 . 1 . . 5 1 4 . Robot Analysis 4 | . . . . . . 4 . . . . . . . . Prototype ID Bank 2 | . . . . . . 1 . . 1 . . . . . Open Door 1 | . . . . . . . . . . . . . . 1 Level Access Points 8 | . . . . . . 1 . 1 1 1 1 1 1 1 Branch Access Points 4 | . . . . . . . . 1 1 1 1 . . . Emergency Access Points 3 | . . . . . . . . . 1 . 2 . . . Machine Index 6 | . . . . . . . . . 1 1 1 1 1 1 Terminal Index 4 | . . . . . 1 1 . 1 1 . . . . . Fabricator Index 1 | . . . . . . 1 . . . . . . . . Scanalyzer Index 1 | . . . . . . . . . 1 . . . . . Garrison Index 1 | . . . . . . . . . 1 . . . . . Alert Level 23 | . 1 . . . 2 8 . 2 5 1 2 1 . 1 Unreport Threat 29 | . . . . . 3 7 . 6 6 . 4 1 . 2 Locate Traps 6 | . . . . . . 1 . 1 1 . 1 1 . 1 Dispatch Records 1 | . . . . . . 1 . . . . . . . . Security Status 1 | . . . . . . . . . . . 1 . . . Surveillance Status 2 | . . . . . . 1 . . . . 1 . . . Patrol Status 2 | . . . . . . 1 . . 1 . . . . . Transport Status 1 | . . . . . . 1 . . . . . . . . Investigation Status 4 | . . . . . . . . 1 1 . 1 1 . . Extermination Status 3 | . . . . . . 1 . . 1 . 1 . . . Reinforcement Status 2 | . . . . . . . . . 1 . 1 . . . Recall Investigation 18 | . . . . . . 3 . 4 3 4 2 . 2 . Recall Extermination 10 | . . . . . . 3 . 1 2 1 2 1 . . Recall Reinforcements 6 | . . . . . . 3 . 1 2 . . . . . Hauler Manifests 3 | . . . . . 1 1 . . . . 1 . . . Registered Components 2 | . . . . . . . . . 1 . 1 . . . Registered Prototypes 2 | . . . . . . 1 . . 1 . . . . . Zone Layout 26 | . . . . . . 10 . 6 2 . 4 2 . 2 Derelict Proto ID Bank 1 | . . . 1 . . . . . . . . . . . Fabricator Hacks 50 | . . . . . . 14 . 11 9 6 6 2 2 . Network Status 4 | . . . . . . 2 . 1 1 . . . . . Load Schematic 23 | . . . . . . 6 . 5 4 3 3 1 1 . Build 23 | . . . . . . 6 . 5 4 3 3 1 1 . Repair Station Hacks 25 | . 3 . . . . 6 . 2 4 4 4 2 . . Scan Component 12 | . 2 . . . . 3 . 1 2 2 2 . . . Repair 11 | . 1 . . . . 3 . 1 2 2 2 . . . Refit 2 | . . . . . . . . . . . . 2 . . Recycling Unit Hacks 1 | . . . . . . . . . 1 . . . . . Report Inventory 1 | . . . . . . . . . 1 . . . . . Scanalyzer 33 | . . . . . 9 9 . 2 7 . 4 2 . . Insert Component 17 | . . . . . 5 4 . 1 4 . 2 1 . . Analyze 16 | . . . . . 4 5 . 1 3 . 2 1 . . Garrison Access Hacks 13 | . . . . . . 2 . 4 2 2 1 . 2 . Seal Access 12 | . . . . . . 2 . 4 2 2 1 . 1 . Coupler Status 1 | . . . . . . . . . . . . . 1 . Unauthorized Hacks 62 | . . . . . 4 15 . 10 13 4 5 5 2 4 Terminals 62 | . . . . . 4 15 . 10 13 4 5 5 2 4 Track 12 | . . . . . . 7 . 2 1 1 . . . 1 Assimilate 21 | . . . . . . 4 . 4 8 . 2 2 1 . Botnet 21 | . . . . . 3 3 . 3 3 3 2 2 1 1 Operators 8 | . . . . . 1 1 . 1 1 . 1 1 . 2 Fabricators . | . . . . . . . . . . . . . . . Repair Stations . | . . . . . . . . . . . . . . . Recycling Units . | . . . . . . . . . . . . . . . Scanalyzers . | . . . . . . . . . . . . . . . Garrison Access . | . . . . . . . . . . . . . . . Data Cores Recovered 1 | . . . . . 1 . . . . . . . . . Used 1 | . . . . . 1 . . . . . . . . . Hacking Detections 125 | . 5 . . . 11 23 . 21 25 9 17 8 3 3 Full Trace Events 44 | . 3 . . . 3 10 . 11 7 3 5 1 1 . Feedback Events 2 | . . . . . . 2 . . . . . . . . Corruption 1 | . . . . . . 1 . . . . . . . . Hackware Fried 1 | . . . . . . 1 . . . . . . . . Feedback Blocked 1 | . . . . . . . . . . . 1 . . . Robot Schematics Acquired . | . . . . . . . . . . . . . . . Robots Built . | . . . . . . . . . . . . . . . Authchips . | . . . . . . . . . . . . . . . Time . | . . . . . . . . . . . . . . . Total Robot Build Rating . | . . . . . . . . . . . . . . . Part Schematics Acquired 31 | . . . . . 6 8 . 2 3 . 6 2 4 . Parts Built 28 | . . . . . . 6 . 6 7 3 4 1 1 . Authchips . | . . . . . . . . . . . . . . . Time 1736 | . . . . . . 389 . 252 347 189 322 50 187 . Total Part Build Rating 144 | . . . . . . 28 . 30 29 15 30 5 7 . Parts Repaired 11 | . 1 . . . . 3 . 1 2 2 2 . . . Time 389 | . 26 . . . . 134 . 28 88 78 35 . . . Parts Recycled . | . . . . . . . . . . . . . . . Recycled Matter . | . . . . . . . . . . . . . . . Retrieved Matter . | . . . . . . . . . . . . . . . Retrieved Components . | . . . . . . . . . . . . . . . Parts Scanalyzed 14 | . . . . . 4 4 . 1 3 . 1 1 . . Part Schematics Acquired 14 | . . . . . 4 4 . 1 3 . 1 1 . . Parts Damaged . | . . . . . . . . . . . . . . . Bothacking | -11 -10 -10 -10 -9 -8 -7 -7 -7 -6 -5 -4 -3 -2 -1 ------------ Run | Yrd Mat Min Exi Min Mat Fac Was Fac Fac Fac Fac Res Res Acc Used RIF Installer . | . . . . . . . . . . . . . . . Robots Hacked . | . . . . . . . . . . . . . . . Non-combat . | . . . . . . . . . . . . . . . Combat . | . . . . . . . . . . . . . . . Robot Hacks Applied . | . . . . . . . . . . . . . . . Relay Couplers Released . | . . . . . . . . . . . . . . . Fabnet Peak Effective % . | . . . . . . . . . . . . . . . Robots Rewired . | . . . . . . . . . . . . . . . Allies Hacked . | . . . . . . . . . . . . . . . Hacks Repelled . | . . . . . . . . . . . . . . . Allies | -11 -10 -10 -10 -9 -8 -7 -7 -7 -6 -5 -4 -3 -2 -1 -------- Run | Yrd Mat Min Exi Min Mat Fac Was Fac Fac Fac Fac Res Res Acc Total Allies 17 | . . 3 . . . 3 . 2 5 . 2 1 1 . Largest Group 3 | . . 3 3 3 1 1 . 2 3 1 1 1 1 . Highest-Rated Group 78 | . . 40 40 40 16 26 . 52 78 26 26 45 10 . Highest-Rated Ally 45 | . . 16 16 16 16 26 . 26 26 26 26 45 10 . Total Orders 26 | . . . . . 1 3 . 6 10 . 4 1 1 . STAY 15 | . . . . . 1 2 . 3 5 . 2 1 1 . FOLLOW 9 | . . . . . . 1 . 3 3 . 2 . . . EXPLORE 2 | . . . . . . . . . 2 . . . . . Ally Attacks 22 | . . . . 19 3 . . . . . . . . . Total Damage 178 | . . . . 145 33 . . . . . . . . . Kills 4 | . . . . 4 . . . . . . . . . . Allies Corrupted 1 | . . . . . . . . 1 . . . . . . Allies Melted . | . . . . . . . . . . . . . . . Intel | -11 -10 -10 -10 -9 -8 -7 -7 -7 -6 -5 -4 -3 -2 -1 ------- Run | Yrd Mat Min Exi Min Mat Fac Was Fac Fac Fac Fac Res Res Acc Robot Analysis Total 4 | . . . . . . 4 . . . . . . . . Derelict Logs Recovered 4 | . . 3 . 1 . . . . . . . . . . Drone Launches 2 | . . . . . . . . . 2 . . . . . Drone Recoveries . | . . . . . . . . . . . . . . . Exploration | -11 -10 -10 -10 -9 -8 -7 -7 -7 -6 -5 -4 -3 -2 -1 ------------- Run | Yrd Mat Min Exi Min Mat Fac Was Fac Fac Fac Fac Res Res Acc Turns Passed 17274 | 67 1006 559 309 104 3209 2784 34 1899 2893 1303 1588 965 465 89 Spaces Moved 20398 | 56 583 433 243 79 1387 3823 101 4728 4110 1583 1848 764 483 177 Core 4 | 3 . . . . 1 . . . . . . . . . Treads 258 | . 64 . . . 194 . . . . . . . . . Legs . | . . . . . . . . . . . . . . . Wheels 2527 | 53 519 433 243 79 1192 8 . . . . . . . . Hover . | . . . . . . . . . . . . . . . Flight 17609 | . . . . . . 3815 101 4728 4110 1583 1848 764 483 177 Fastest Speed 25 | 50 95 125 110 110 95 29 30 29 27 26 25 28 28 28 Average Speed 42 | 85 115 125 125 110 134 30 30 29 29 26 27 28 28 28 Slowest Speed 1150 | 95 160 125 155 110 1150 160 30 30 99 29 98 28 28 28 Overloaded Moves 10 | . . . . . . . . . . . 10 . . . Propulsion Burnouts . | . . . . . . . . . . . . . . . Robots Hopped 65 | . . . . . . 17 . 25 12 4 2 5 . . Cave-ins Triggered . | . . . . . . . . . . . . . . . Exploration Rate (%) 47 | 4 91 67 61 17 74 75 79 67 69 31 38 18 9 9 Regions Visited 14 Branch Regions 3 Pre-discovered Areas 1 | . . . . 1 . . . . . . . . . . Known Exits Taken 7 | . . . . . 1 . . 1 1 1 1 1 1 . Unknown Exits Taken 5 | 1 1 1 1 1 . . . . . . . . . . Scrap Searched 1 | . . 1 . . . . . . . . . . . . Spaces Dug 257 | . . . . . 13 63 . 47 60 25 38 7 2 2 Terrain Destroyed 566 | . 31 7 . 22 72 138 . 47 77 99 49 20 2 2 Melee 249 | . . . . . 13 55 . 47 60 25 38 7 2 2 Projectile . | . . . . . . . . . . . . . . . AOE 317 | . 31 7 . 22 59 83 . . 17 74 11 13 . . Terrain Rammed . | . . . . . . . . . . . . . . . Walls Destroyed . | . . . . . . . . . . . . . . . Machines Disabled . | . . . . . . . . . . . . . . . Actions | -11 -10 -10 -10 -9 -8 -7 -7 -7 -6 -5 -4 -3 -2 -1 --------- Run | Yrd Mat Min Exi Min Mat Fac Was Fac Fac Fac Fac Res Res Acc Total 28134 | 71 785 448 247 86 2495 5342 102 5146 5676 2402 2836 1481 805 212 Wait 6799 | 4 87 13 . . 837 1378 . 357 1433 774 904 669 311 32 Move 20257 | 55 582 432 242 78 1386 3790 100 4679 4085 1574 1843 753 482 176 Hop 62 | . . . . . . 16 . 23 12 4 2 5 . . Pick Up 108 | 6 14 . 1 1 31 14 . 9 15 6 7 4 . . Fast Attach 51 | 6 3 . . . 6 8 1 4 9 3 5 2 4 . Attach 46 | . 1 . . . 2 11 . 1 15 5 6 2 1 2 Detach 15 | . 1 . . . . 3 . . 7 . 2 . 2 . Swap 133 | . 19 1 2 2 63 3 1 8 12 3 15 4 . . Drop 112 | . 9 . 2 . 39 23 . 10 12 1 6 9 1 . Fire 210 | . 66 1 . 5 116 9 . . 3 5 4 1 . . Melee 288 | . . . . . 14 57 . 55 73 27 42 14 4 2 Ram 3 | . 2 1 . . . . . . . . . . . . Kick . | . . . . . . . . . . . . . . . Crush 2 | . 1 . . . 1 . . . . . . . . . Escape Stasis 48 | . . . . . . 30 . . . . . 18 . . Rewire . | . . . . . . . . . . . . . . . Trap . | . . . . . . . . . . . . . . . Miscellaneous . | . . . . . . . . . . . . . . . Route ------- -11/Scrapyard -10/Materials (discovered 4 exits: [*Mat x3] / [*Min]) -10/Mines (discovered 3 exits: [*Mat x2] / *Exi) -10/Exiles -9/Mines -8/Materials (discovered 3 exits: *Fac x3) -7/Factory (discovered 6 exits: *Fac x4 / *Low x2) -7/Waste -7/Factory (discovered 8 exits: *Fac x4 / *Sto x2 / *Low x2) -6/Factory (discovered 8 exits: *Fac x4 / *Low x2 / *Ext x2) -5/Factory (discovered 6 exits: *Fac x4 / *Upp x2) -4/Factory (discovered 7 exits: *Res x4 / *Upp x2 / Arm) -3/Research (discovered 3 exits: *Res x3) -2/Research (discovered 4 exits: *Acc x3 / [*Tes]) -1/Access To Epsilon Eridani History --------- Turn | Location | Event 34 | -11/Scrapyard | Discovered new exit (range 15) 68 | -11/Scrapyard | Entered Materials 301 | -10/Materials | Build established: Mutant 492 | -10/Materials | Discovered new exit (range 4) 563 | -10/Materials | Discovered new exit (range 16) 957 | -10/Materials | Repaired Lgt. Treads 969 | -10/Materials | Discovered new exit (range 12) 1054 | -10/Materials | Discovered new exit (range 9) 1074 | -10/Materials | Entered Mines 1107 | -10/Mines | Met a Derelict bent on vengeance 1171 | -10/Mines | Assisted by bots powering up and referring to "LRC-V3" 1236 | -10/Mines | Discovered new exit (range 13) 1315 | -10/Mines | Learned Materials security intel 1406 | -10/Mines | Learned Materials non-interactive machine intel 1438 | -10/Mines | Learned 8 Materials zone layouts 1459 | -10/Mines | Discovered new exit (range 8) 1627 | -10/Mines | Deemed a non-threat by the Exiles lab entrance 1628 | -10/Mines | Discovered new exit (range 5) 1633 | -10/Mines | Entered Exiles 1633 | -10/Exiles | Accompanied by 3 allies 1663 | -10/Exiles | Met 8R-AWN 1686 | -10/Exiles | Met EX-HEX 1718 | -10/Exiles | Met EX-BIN 1736 | -10/Exiles | Aligned with FarCom system 1737 | -10/Exiles | Given EX-Vault access code 1767 | -10/Exiles | Opened EX-Vault 1775 | -10/Exiles | Found Cloak of Protection 1801 | -10/Exiles | Warned to stay clear of 0b10 Research branches 1835 | -10/Exiles | Met EX-DEC 1929 | -10/Exiles | Discovered new exit (range 12) 1942 | -10/Exiles | Left Exiles lab with Cloak of Protection 1942 | -10/Exiles | Entered Mines 1942 | -9/Mines | Accompanied by 3 allies 1983 | -9/Mines | Learned location of Zion (-6) 2004 | -9/Mines | Found a damaged Exp. Sensor Array with a note attached 2007 | -9/Mines | Found Prototype Device 2040 | -9/Mines | Discovered new exit (range 6) 2046 | -9/Mines | Entered Materials 2046 | -8/Materials | Accompanied by 1 ally 2046 | -8/Materials | Evolved 4 slots: Propulsion x1, Utility x3 2047 | -8/Materials | Identified exit to Factory 2049 | -8/Materials | Loaded intel: 46 non-interactive machine locations 2802 | -8/Materials | Build established: Scavenger-Mutant 4289 | -8/Materials | Discovered exit to Factory (range 16) 4730 | -8/Materials | Build established: Mutant 5168 | -8/Materials | Build established: Scavenger-Mutant 5255 | -8/Materials | Entered Factory 5255 | -7/Factory | Evolved 2 slots: Utility x2 5401 | -7/Factory | Identified exit to Factory 5525 | -7/Factory | Fabricated Imp. System Shield? 5586 | -7/Factory | Fabricated Imp. Hacking Suite? 5688 | -7/Factory | Build established: Hacker-Sprinter 5756 | -7/Factory | Fabricated Imp. System Shield? 6115 | -7/Factory | Central database locked down 6138 | -7/Factory | Build established: Wizard-Sprinter 6459 | -7/Factory | Discovered new exit (range 12) 6585 | -7/Factory | Discovered new exit (range 5) 6809 | -7/Factory | Fabricated Imp. System Shield? 7121 | -7/Factory | Fabricated Imp. Hacking Suite? 7487 | -7/Factory | Repaired Cld. VTOL Module 7527 | -7/Factory | Repaired Cesium-ion Thruster 7554 | -7/Factory | Repaired Sml. Storage Unit 7803 | -7/Factory | Hacking Suite fried by hacking feedback 7814 | -7/Factory | Fabricated Imp. VTOL Module? 8039 | -7/Factory | Sucked down chute 8039 | -7/Factory | Entered Waste 8054 | -7/Waste | EMP discharged 8055 | -7/Waste | Spotted C-40 Crusher 8059 | -7/Waste | Spotted C-40 Crusher 8059 | -7/Waste | Spotted C-40 Crusher 8063 | -7/Waste | Spotted C-40 Crusher 8063 | -7/Waste | Spotted C-40 Crusher 8064 | -7/Waste | Spotted C-40 Crusher 8067 | -7/Waste | Discovered new exit (range 14) 8073 | -7/Waste | Entered Factory 8157 | -7/Factory | System corruption reached 10% 8171 | -7/Factory | Discovered new exit (range 17) 8175 | -7/Factory | Discovered exit to Factory (range 13) 8198 | -7/Factory | Identified exit to Storage 8198 | -7/Factory | Identified exit to Lower Caves 8329 | -7/Factory | Build established: Hacker-Sprinter 9131 | -7/Factory | Fabricated Imp. Hacking Suite? 9163 | -7/Factory | Fabricated Mic. Fission Core? 9181 | -7/Factory | Fabricated Imp. VTOL Module? 9730 | -7/Factory | Repaired Mic. Fission Core 9890 | -7/Factory | Fabricated Imp. Hacking Suite? 9905 | -7/Factory | Fabricated Imp. Hacking Suite? 9972 | -7/Factory | Entered another Factory area 9972 | -6/Factory | Evolved 2 slots: Propulsion x1, Utility x1 9992 | -6/Factory | Spotted B-75 Beast 10346 | -6/Factory | Repaired Imp. VTOL Module 10405 | -6/Factory | Build established: Wizard-Scout 10577 | -6/Factory | Repaired Mic. Fission Core 10701 | -6/Factory | Discovered new exit (range 7) 10731 | -6/Factory | Discovered new exit (range 16) 10898 | -6/Factory | Identified exit to Factory 10906 | -6/Factory | Identified exit to Lower Caves 10906 | -6/Factory | Identified exit to Extension 11071 | -6/Factory | Fabricated Xenon Bombardment Thruster? 11403 | -6/Factory | Fabricated Xenon Bombardment Thruster? 11921 | -6/Factory | Lost 3 parts (1p1n1u) 12203 | -6/Factory | Build established: Hacker-Sprinter 12366 | -6/Factory | Fabricated Xenon Bombardment Thruster? 12379 | -6/Factory | Fabricated Imp. Hacking Suite? 12865 | -6/Factory | Entered another Factory area 12865 | -5/Factory | Accompanied by 1 ally 12865 | -5/Factory | Evolved 2 slots: Power x1, Propulsion x1 13030 | -5/Factory | Repaired Imp. VTOL Module 13046 | -5/Factory | Discovered new exit (range 16) 13250 | -5/Factory | Fabricated Imp. Hacking Suite (x1) 13381 | -5/Factory | Discovered new exit (range 17) 13426 | -5/Factory | Repaired Mic. Fission Core 13433 | -5/Factory | Fabricated Imp. Hacking Suite? 13818 | -5/Factory | Identified exit to Factory 13818 | -5/Factory | Identified exit to Upper Caves 13900 | -5/Factory | Build established: Wizard-Scout 13954 | -5/Factory | Fabricated Imp. Hacking Suite? 14168 | -5/Factory | Entered another Factory area 14168 | -4/Factory | Evolved 2 slots: Utility x2 14191 | -4/Factory | Identified exit to Research 14218 | -4/Factory | Repaired Sml. Storage Unit 14244 | -4/Factory | Repaired Xenon Bombardment Thruster 14294 | -4/Factory | Identified exit to Upper Caves 14294 | -4/Factory | Identified exit to Armory 15112 | -4/Factory | Fabricated Mic. Antimatter Reactor? 15196 | -4/Factory | Lost 3 parts (2u1w) 15260 | -4/Factory | Spotted B-86 Titan 15398 | -4/Factory | Fabricated Exp. Hacking Suite? 15479 | -4/Factory | Fabricated Exp. Hacking Suite? 15560 | -4/Factory | Build established: Wizard-Ninja 15756 | -4/Factory | Entered Research 15756 | -3/Research | Evolved 2 slots: Utility x2 15770 | -3/Research | Identified exit to Research 15770 | -3/Research | Central database locked down 15916 | -3/Research | Fabricated Exp. Utility Shielding? 16256 | -3/Research | Spotted B-86 Titan 16721 | -3/Research | Entered another Research area 16721 | -2/Research | Evolved 2 slots: Propulsion x1, Utility x1 16730 | -2/Research | Discovered new exit (range 5) 16809 | -2/Research | Discovered new exit (range 16) 16881 | -2/Research | Identified exit to Access 17179 | -2/Research | Fabricated Exp. System Shield (x1) 17186 | -2/Research | Entered Access 17186 | -1/Access | Evolved 2 slots: Power x1, Utility x1 17189 | -1/Access | Identified exit to Surface 17275 | *** | Escaped! Last Messages --------------- 17236_ Connecting with Terminal... >>Layout(Zone) Retrieving Zone 1K layout... Downloaded map data. 17236_ Connecting with Terminal... >>Trojan(Operators) Trojan loaded successfully. Testing... Operator tracking enabled and active. >>Trojan(Track) Trojan loaded successfully. Testing... Tracking enabled and active. 17242_ U-05 Engineer builds a Wall. 17273_ Connecting with Terminal... >>Open(Door) Sealed Barrier opened. 17273_ The Access Shell folds into the floor. [Achievement: Epsilon Run] [Achievement: Achiever] Map ----- +----------------------------------------------------+ | ??????????? ????????????????????##?????? ? ? ???? | | ????????????? ?????????#??????#??#??? ? ?? ?#?? | | ????????????????????????#??##??###? ??? ??? ??##? | | ??????????????????????????????###??? ??? ??#### | | ???????????????????#???##?????????? ? ? ? ?###? | | ????????????? ??#?????#???????#? ? ? ?? ? ?### | | ????????? ???????????#???????####? ? ?###? | | ??????? ?? ?????????##???#???#??## ? ?? ?? ??## | | ?????????????? ?????#??#####?#?##??? ? ?? ??##? | | ??????? ? ????? ???????????#???## ? ? ? ?#?# | | ??????#??#????#+#######################+########## | | ????????????? | | ??????????? ? k | | ?????????#??###??#??# ""####### | | ???????????? ??? ???# ""###?### | | ????#???? ?? ????#??# ""#?##### | | ????????"???????????# T###?#?# | | ?????? ?????????????# ""#?##### u | | ???#????????????????# ""#?#?#?# | | ?????????????? ????## ""####### | | ???????????????????# ###########+###### | | ??????????????? ???## ####?## # | | ????????????? ???#?## ####### # | | ??????????????????### ###?### # | | ???????????????????## ####### # | | ??????????????????### @" ##?##?# # | | ????????????????????# "" #?##??# # | | ???????????????????## #??##?# = # | | ????????????????????# ##??############### | | ????????#?????#?????# ##?## ###?# | | ???????????#?#????#?#""""""""""##### #?### | | ??????????????#??????"""""""?""?##?#"" #?### | | ?????????????#??????#""""?""""??####"" == ##### | | ????????????????????????"""?"?"#?#?#"" == + | | ????????????????#????? ???? #####T = # | | ??????????????#???????BB ? ?BB ???##"" # | | ??????????????????????BB ??BB?###?#"" + | | ?????????????????????? ?? #?##?"" # | | ?????????????#?????????? ?? #?### ? # | | ????????????????#????????? ? ###?Y ? # | | ????????????????????????? ?? ##?#???? # | | ??????????????????????????? ##?#???? # | | ??????????????????????????????#####? # | | ????????????????????????? ?????###?# ? ?# | | ?????????????????????????? ?? ?? ???? ? ??? # | | ??????????????????????????? ? ???? ?#+###?#### | | ????????????????????????????? ? ? ? ?####?#?# | | ??????????????????????????? ???????? ??#?##??####/ | | ??????????????????????????????" ?? ????????? ? | | ???????????????????????????????? ?? ???#?### ?? | +----------------------------------------------------+ Best States ------------- Heat Dissipation 52 Energy Generation 41 Energy Capacity 300 Matter Stores 300 Matter Capacity 300 Sight Range 16 Terrain Scan Range 24 Terrain Scan Density 210 Cloak Strength 5 Armor Coverage 600 Resistance: KI 20 Resistance: TH 30 Resistance: EM 15 Utility Shielding 90 Evasion (%) 64 Targeting Accuracy 32 Recoil Reduction 3 Offensive Hacking 80 Defensive Hacking 28 Item Schematics ----------------- Hacking Suite | -8/Materials | Scanalyzed System Shield | -8/Materials | Scanalyzed Sml. Storage Unit | -8/Materials | Scanalyzed Xenon Bombardment Thruster | -8/Materials | Scanalyzed Imp. Flight Unit | -8/Materials | Hacked Mni. Grenade Launcher | -8/Materials | Hacked Imp. VTOL Module | -7/Factory | Hacked Imp. Hacking Suite | -7/Factory | Hacked Imp. System Shield | -7/Factory | Hacked Mic. Nuclear Core | -7/Factory | Scanalyzed Missile Launcher | -7/Factory | Scanalyzed Imp. Light Armor Plating | -7/Factory | Scanalyzed Com. Wheel | -7/Factory | Scanalyzed Mic. Fission Core | -7/Factory | Hacked Transmission Jammer | -7/Factory | Hacked Adv. Terrain Scan Processor | -7/Factory | Scanalyzed Imp. Trap Scanner | -6/Factory | Scanalyzed Biomechanical Wings | -6/Factory | Scanalyzed Cld. VTOL Module | -6/Factory | Scanalyzed Lgt. Quantum Reactor | -4/Factory | Hacked Exp. Hacking Suite | -4/Factory | Hacked Fusion Compressor | -4/Factory | Scanalyzed Quantum Reactor | -4/Factory | Hacked Med. Storage Unit | -4/Factory | Hacked Mic. Antimatter Reactor | -4/Factory | Hacked Exp. Utility Shielding | -3/Research | Hacked Imp. Recalibrator | -3/Research | Scanalyzed Exp. System Shield | -2/Research | Hacked Exp. Cesium-ion Thruster | -2/Research | Hacked Exp. Propulsion Shielding | -2/Research | Hacked Scythe | -2/Research | Hacked Robot Schematics ------------------ None Fabricated ------------ Imp. System Shield | x1 | -7/Factory Imp. Hacking Suite | x1 | -7/Factory Imp. System Shield | x1 | -7/Factory Imp. System Shield | x1 | -7/Factory Imp. Hacking Suite | x1 | -7/Factory Imp. VTOL Module | x1 | -7/Factory Imp. Hacking Suite | x1 | -7/Factory Mic. Fission Core | x2 | -7/Factory Imp. VTOL Module | x1 | -7/Factory Imp. Hacking Suite | x1 | -7/Factory Imp. Hacking Suite | x1 | -7/Factory Xenon Bombardment Thruster | x2 | -6/Factory Xenon Bombardment Thruster | x2 | -6/Factory Xenon Bombardment Thruster | x2 | -6/Factory Imp. Hacking Suite | x1 | -6/Factory Imp. Hacking Suite | x1 | -5/Factory Imp. Hacking Suite | x1 | -5/Factory Imp. Hacking Suite | x1 | -5/Factory Mic. Antimatter Reactor | x2 | -4/Factory Exp. Hacking Suite | x1 | -4/Factory Exp. Hacking Suite | x1 | -4/Factory Exp. Utility Shielding | x1 | -3/Research Exp. System Shield | x1 | -2/Research Alien Tech Used ----------------- None Achievements -------------- Achiever Can't Catch Me Denied? Epsilon Run Maximum Efficiency Production Line Respectable Loadout Safety First root@ Challenges ------------ None Game ------ Seed VisualWeaponNanovents Manual? 0 Play Time 06:24:22 Cumulative 23.5 hours Start 2024.04.05 @ 08:51:57 End 2024.04.06 @ 00:34:19 Sessions 5 Manual Loads 0 Difficulty Rogue Special Mode None Game No. 19 Rogue 19 Adventurer 0 Explorer 0 Win Type 0 Total 1 Types 1/0/0/0/0/0/0/0/0 Lore% 18 Gallery% 24 Achievement% 26 Wizard Run 0 Options --------- Layout 0 ASCII 0 Keyboard 0 Movement Mouse Keybinds 0 Fullscreen 2 Font 20/SmallcapsGlow Map View 140x60 Zoom Use 0% Tactical HUD 1 Map Filters NONE Filters NONE Steam 1 RUN: e0e605c9-d093-4f94-9c60-6e259b3c3a34